[Event "Titled Tuesday Blitz October 11 Early 2022"]
[White "Czernek, Tymon"]
[Black "Titichoca Daza, Daniel"]
[WhiteFideId "1199510"]
[BlackFideId "3309550"]
[WhiteElo "2240"]
[BlackElo "2105"]
[Result "1-0"]
[Round "08"]
[TimeControl "180+1"]
[Date "2022.10.12"]
[WhiteClock "0:02:13"]
[BlackClock "0:00:07"]

1. e4 {[%clk 0:03:00]}  c5 {[%clk 0:03:00]} 2. Nf3 {[%clk 0:03:00]}  e6 {[%clk 0:03:00]} 3. d4 {[%clk 0:03:01]}  cxd4 {[%clk 0:03:01]} 4. Nxd4 {[%clk 0:03:01]}  a6 {[%clk 0:03:02]} 5. Bd3 {[%clk 0:03:00]}  Nc6 {[%clk 0:02:57]} 6. Nb3 {[%clk 0:02:59]}  Nf6 {[%clk 0:02:57]} 7. O-O {[%clk 0:02:58]}  d6 {[%clk 0:02:47]} 8. f4 {[%clk 0:02:59]}  Be7 {[%clk 0:02:48]} 9. Be3 {[%clk 0:02:56]}  O-O {[%clk 0:02:48]} 10. Nc3 {[%clk 0:02:56]}  b5 {[%clk 0:02:48]} 11. a4 {[%clk 0:02:51]}  b4 {[%clk 0:02:48]} 12. Nb1 {[%clk 0:02:49]}  Bb7 {[%clk 0:02:47]} 13. N1d2 {[%clk 0:02:49]}  Rc8 {[%clk 0:02:45]} 14. a5 {[%clk 0:02:49]}  Nd7 {[%clk 0:02:41]} 15. Nc4 {[%clk 0:02:49]}  Re8 {[%clk 0:02:23]} 16. Nb6 {[%clk 0:02:48]}  Nxb6 {[%clk 0:02:15]} 17. axb6 {[%clk 0:02:44]}  Bf6 {[%clk 0:02:16]} 18. Bxa6 {[%clk 0:02:42]}  Bxa6 {[%clk 0:02:11]} 19. Rxa6 {[%clk 0:02:43]}  Bxb2 {[%clk 0:02:05]} 20. b7 {[%clk 0:02:43]}  Rc7 {[%clk 0:02:00]} 21. Bb6 {[%clk 0:02:39]}  Qb8 {[%clk 0:01:57]} 22. Ra8 {[%clk 0:02:36]}  Rxb7 {[%clk 0:01:54]} 23. Rxb8 {[%clk 0:02:35]}  Rexb8 {[%clk 0:01:54]} 24. Bd4 {[%clk 0:02:33]}  Nxd4 {[%clk 0:01:51]} 25. Nxd4 {[%clk 0:02:34]}  Rc8 {[%clk 0:01:46]} 26. Nb3 {[%clk 0:02:33]}  Rbc7 {[%clk 0:01:39]} 27. Qxd6 {[%clk 0:02:32]}  Rxc2 {[%clk 0:01:39]} 28. Qxb4 {[%clk 0:02:32]}  h6 {[%clk 0:01:30]} 29. f5 {[%clk 0:02:31]}  Re2 {[%clk 0:01:19]} 30. fxe6 {[%clk 0:02:31]}  fxe6 {[%clk 0:01:18]} 31. Nd4 {[%clk 0:02:27]}  Bxd4+ {[%clk 0:00:24]} 32. Qxd4 {[%clk 0:02:28]}  Rcc2 {[%clk 0:00:24]} 33. Qe5 {[%clk 0:02:27]}  Rxg2+ {[%clk 0:00:20]} 34. Kh1 {[%clk 0:02:27]}  Kh7 {[%clk 0:00:19]} 35. Rg1 {[%clk 0:02:25]}  Rxg1+ {[%clk 0:00:16]} 36. Kxg1 {[%clk 0:02:25]}  Rc6 {[%clk 0:00:15]} 37. Kf2 {[%clk 0:02:21]}  Ra6 {[%clk 0:00:15]} 38. h4 {[%clk 0:02:20]}  Rc6 {[%clk 0:00:15]} 39. h5 {[%clk 0:02:20]}  Ra6 {[%clk 0:00:15]} 40. Qg3 {[%clk 0:02:17]}  Ra2+ {[%clk 0:00:15]} 41. Ke1 {[%clk 0:02:17]}  Ra1+ {[%clk 0:00:15]} 42. Kd2 {[%clk 0:02:17]}  Ra2+ {[%clk 0:00:16]} 43. Kc1 {[%clk 0:02:18]}  Ra1+ {[%clk 0:00:16]} 44. Kb2 {[%clk 0:02:19]}  Ra5 {[%clk 0:00:15]} 45. Qg6+ {[%clk 0:02:18]}  Kh8 {[%clk 0:00:14]} 46. Qxe6 {[%clk 0:02:18]}  Kh7 {[%clk 0:00:15]} 47. Qg6+ {[%clk 0:02:18]}  Kh8 {[%clk 0:00:15]} 48. Qe8+ {[%clk 0:02:19]}  Kh7 {[%clk 0:00:14]} 49. e5 {[%clk 0:02:19]}  Rd5 {[%clk 0:00:11]} 50. Qg6+ {[%clk 0:02:19]}  Kh8 {[%clk 0:00:10]} 51. e6 {[%clk 0:02:18]}  Re5 {[%clk 0:00:10]} 52. Qf7 {[%clk 0:02:15]}  Kh7 {[%clk 0:00:11]} 53. e7 {[%clk 0:02:14]}  Re2+ {[%clk 0:00:07]} 54. Kc3 {[%clk 0:02:14]}  Re3+ {[%clk 0:00:07]} 55. Kd4 {[%clk 0:02:13]}  Re1 {[%clk 0:00:07]} 56. Qg6+ {[%clk 0:02:13]} 1-0


[Site "https://www.chess.com"]

[Event "Titled Tuesday Blitz October 11 Early 2022"]
[White "Dardha, Daniel"]
[Black "Bacrot, Etienne"]
[WhiteFideId "240990"]
[BlackFideId "605506"]
[WhiteElo "2528"]
[BlackElo "2666"]
[Result "1-0"]
[Round "08"]
[TimeControl "180+1"]
[Date "2022.10.11"]
[WhiteClock "0:00:32"]
[BlackClock "0:00:37"]

1. e4 {[%clk 0:03:00]}  c5 {[%clk 0:02:59]} 2. Nf3 {[%clk 0:02:59]}  d6 {[%clk 0:03:00]} 3. d4 {[%clk 0:02:58]}  cxd4 {[%clk 0:03:00]} 4. Nxd4 {[%clk 0:02:57]}  Nf6 {[%clk 0:03:00]} 5. Nc3 {[%clk 0:02:56]}  Nc6 {[%clk 0:03:00]} 6. Bg5 {[%clk 0:02:55]}  e6 {[%clk 0:03:00]} 7. Qd2 {[%clk 0:02:46]}  a6 {[%clk 0:02:57]} 8. O-O-O {[%clk 0:02:45]}  Bd7 {[%clk 0:02:58]} 9. f4 {[%clk 0:02:41]}  Be7 {[%clk 0:02:52]} 10. Nf3 {[%clk 0:02:38]}  b5 {[%clk 0:02:52]} 11. e5 {[%clk 0:02:38]}  b4 {[%clk 0:02:51]} 12. exf6 {[%clk 0:02:38]}  bxc3 {[%clk 0:02:52]} 13. Qxc3 {[%clk 0:02:39]}  gxf6 {[%clk 0:02:51]} 14. Bh4 {[%clk 0:02:40]}  Rg8 {[%clk 0:02:49]} 15. Kb1 {[%clk 0:02:30]}  Rb8 {[%clk 0:02:18]} 16. g3 {[%clk 0:02:23]}  a5 {[%clk 0:02:02]} 17. Be2 {[%clk 0:02:08]}  d5 {[%clk 0:01:49]} 18. f5 {[%clk 0:01:53]}  Rg4 {[%clk 0:01:31]} 19. fxe6 {[%clk 0:01:50]}  fxe6 {[%clk 0:01:31]} 20. Nd4 {[%clk 0:01:42]}  Rxd4 {[%clk 0:01:27]} 21. Rxd4 {[%clk 0:01:40]}  Nxd4 {[%clk 0:01:26]} 22. Qxd4 {[%clk 0:01:41]}  Kf7 {[%clk 0:01:16]} 23. Rf1 {[%clk 0:01:23]}  Rb4 {[%clk 0:01:07]} 24. Qd2 {[%clk 0:01:19]}  Kg7 {[%clk 0:01:03]} 25. Bd3 {[%clk 0:01:08]}  a4 {[%clk 0:00:56]} 26. Bxf6+ {[%clk 0:01:01]}  Bxf6 {[%clk 0:00:55]} 27. Qxb4 {[%clk 0:01:02]}  e5 {[%clk 0:00:55]} 28. Qb7 {[%clk 0:00:47]}  Qe7 {[%clk 0:00:39]} 29. Qxd5 {[%clk 0:00:36]}  a3 {[%clk 0:00:37]} 30. Qe4 {[%clk 0:00:32]} 1-0


[Site "https://www.chess.com"]

[Event "Titled Tuesday Blitz October 11 Early 2022"]
[White "Dehtiarov, Roman"]
[Black "Begunov, Konstantin"]
[WhiteFideId "14186640"]
[BlackFideId "4118510"]
[WhiteElo "2200"]
[BlackElo "2225"]
[Result "1-0"]
[Round "08"]
[TimeControl "180+1"]
[Date "2022.10.12"]
[WhiteClock "0:01:36"]
[BlackClock "0:00:11"]

1. e4 {[%clk 0:02:58]}  c5 {[%clk 0:02:59]} 2. Nc3 {[%clk 0:02:57]}  d6 {[%clk 0:02:59]} 3. f4 {[%clk 0:02:58]}  g6 {[%clk 0:02:58]} 4. Nf3 {[%clk 0:02:58]}  Bg7 {[%clk 0:02:58]} 5. Bb5+ {[%clk 0:02:58]}  Bd7 {[%clk 0:02:58]} 6. Bxd7+ {[%clk 0:02:58]}  Qxd7 {[%clk 0:02:59]} 7. O-O {[%clk 0:02:59]}  Nc6 {[%clk 0:02:59]} 8. d3 {[%clk 0:02:59]}  Nf6 {[%clk 0:02:53]} 9. Qe1 {[%clk 0:02:56]}  O-O {[%clk 0:02:53]} 10. h3 {[%clk 0:02:55]}  Rab8 {[%clk 0:02:39]} 11. Be3 {[%clk 0:02:53]}  b5 {[%clk 0:02:39]} 12. Qh4 {[%clk 0:02:52]}  b4 {[%clk 0:02:37]} 13. Ne2 {[%clk 0:02:52]}  a5 {[%clk 0:01:58]} 14. g4 {[%clk 0:02:51]}  a4 {[%clk 0:01:52]} 15. Rab1 {[%clk 0:02:51]}  a3 {[%clk 0:01:48]} 16. b3 {[%clk 0:02:51]}  Rfe8 {[%clk 0:01:30]} 17. f5 {[%clk 0:02:49]}  Ne5 {[%clk 0:01:21]} 18. Nxe5 {[%clk 0:02:49]}  dxe5 {[%clk 0:01:21]} 19. Ng3 {[%clk 0:02:46]}  Qc6 {[%clk 0:01:08]} 20. g5 {[%clk 0:02:43]}  Nd7 {[%clk 0:01:00]} 21. Rf2 {[%clk 0:02:40]}  f6 {[%clk 0:00:31]} 22. Rbf1 {[%clk 0:02:38]}  Nf8 {[%clk 0:00:25]} 23. fxg6 {[%clk 0:02:32]}  hxg6 {[%clk 0:00:22]} 24. gxf6 {[%clk 0:02:10]}  exf6 {[%clk 0:00:22]} 25. Rxf6 {[%clk 0:02:09]}  Bxf6 {[%clk 0:00:22]} 26. Rxf6 {[%clk 0:02:09]}  Re6 {[%clk 0:00:22]} 27. Rf1 {[%clk 0:01:58]}  Rb7 {[%clk 0:00:22]} 28. Qg4 {[%clk 0:01:57]}  Rf7 {[%clk 0:00:21]} 29. Nf5 {[%clk 0:01:51]}  Ref6 {[%clk 0:00:15]} 30. Nh6+ {[%clk 0:01:49]}  Kg7 {[%clk 0:00:16]} 31. Nxf7 {[%clk 0:01:49]}  Rxf1+ {[%clk 0:00:16]} 32. Kxf1 {[%clk 0:01:50]}  Qf6+ {[%clk 0:00:14]} 33. Ke2 {[%clk 0:01:45]}  Kxf7 {[%clk 0:00:15]} 34. Bxc5 {[%clk 0:01:38]}  Qc6 {[%clk 0:00:15]} 35. Qf3+ {[%clk 0:01:38]}  Ke6 {[%clk 0:00:11]} 36. Qxf8 {[%clk 0:01:36]} 1-0


[Site "https://www.chess.com"]

[Event "Titled Tuesday Blitz October 11 Early 2022"]
[White "Djokic, Mihailo"]
[Black "Fernandez Garcia, Gumersindo"]
[WhiteFideId "976440"]
[BlackFideId "24516740"]
[WhiteElo "2315"]
[BlackElo "2072"]
[Result "1-0"]
[Round "08"]
[TimeControl "180+1"]
[Date "2022.10.12"]
[WhiteClock "0:02:08"]
[BlackClock "0:00:43"]

1. e4 {[%clk 0:03:00]}  c5 {[%clk 0:02:57]} 2. Nf3 {[%clk 0:03:00]}  e6 {[%clk 0:02:57]} 3. d4 {[%clk 0:03:01]}  cxd4 {[%clk 0:02:57]} 4. Nxd4 {[%clk 0:03:02]}  Nf6 {[%clk 0:02:58]} 5. Nc3 {[%clk 0:03:01]}  Nc6 {[%clk 0:02:58]} 6. Ndb5 {[%clk 0:03:02]}  Bb4 {[%clk 0:02:57]} 7. Bf4 {[%clk 0:03:02]}  Nxe4 {[%clk 0:02:53]} 8. Qf3 {[%clk 0:03:01]}  d5 {[%clk 0:02:48]} 9. Nc7+ {[%clk 0:02:56]}  Kf8 {[%clk 0:02:48]} 10. Nxa8 {[%clk 0:02:52]}  e5 {[%clk 0:02:21]} 11. Bd2 {[%clk 0:02:25]}  Nd4 {[%clk 0:02:20]} 12. Qd3 {[%clk 0:02:25]}  Nc5 {[%clk 0:01:45]} 13. Qg3 {[%clk 0:02:16]}  Nxc2+ {[%clk 0:01:39]} 14. Kd1 {[%clk 0:02:14]}  Nxa1 {[%clk 0:01:39]} 15. Qxe5 {[%clk 0:02:14]}  Bg4+ {[%clk 0:01:33]} 16. f3 {[%clk 0:02:13]}  Qxa8 {[%clk 0:01:19]} 17. Nxd5 {[%clk 0:02:11]}  Bxd2 {[%clk 0:00:51]} 18. Qd6+ {[%clk 0:02:09]}  Kg8 {[%clk 0:00:51]} 19. Ne7+ {[%clk 0:02:09]}  Kf8 {[%clk 0:00:51]} 20. Nc8+ {[%clk 0:02:08]}  Kg8 {[%clk 0:00:43]} 21. Qd8# {[%clk 0:02:08]} 1-0


[Site "https://www.chess.com"]

[Event "Titled Tuesday Blitz October 11 Early 2022"]
[White "Drozdowski, Kacper"]
[Black "Koziorowicz, Michal"]
[WhiteFideId "1136720"]
[BlackFideId "21809194"]
[WhiteElo "2485"]
[BlackElo "2220"]
[Result "1/2-1/2"]
[Round "08"]
[TimeControl "180+1"]
[Date "2022.10.11"]
[WhiteClock "0:00:09"]
[BlackClock "0:00:11"]

1. e4 {[%clk 0:03:00]}  c5 {[%clk 0:02:58]} 2. Nf3 {[%clk 0:03:00]}  d6 {[%clk 0:02:58]} 3. d4 {[%clk 0:03:01]}  cxd4 {[%clk 0:02:59]} 4. Nxd4 {[%clk 0:03:01]}  Nf6 {[%clk 0:02:59]} 5. f3 {[%clk 0:03:01]}  g6 {[%clk 0:02:59]} 6. c4 {[%clk 0:03:01]}  Bg7 {[%clk 0:03:00]} 7. Nc3 {[%clk 0:03:02]}  O-O {[%clk 0:03:01]} 8. Be3 {[%clk 0:03:02]}  Nc6 {[%clk 0:03:01]} 9. Qd2 {[%clk 0:03:03]}  a5 {[%clk 0:03:02]} 10. Be2 {[%clk 0:03:03]}  a4 {[%clk 0:03:02]} 11. O-O {[%clk 0:03:02]}  Qa5 {[%clk 0:03:03]} 12. Rac1 {[%clk 0:03:01]}  Nxd4 {[%clk 0:03:03]} 13. Bxd4 {[%clk 0:03:00]}  Be6 {[%clk 0:03:03]} 14. Rc2 {[%clk 0:02:53]}  Rfc8 {[%clk 0:03:03]} 15. b3 {[%clk 0:02:33]}  axb3 {[%clk 0:03:02]} 16. axb3 {[%clk 0:02:34]}  Qb4 {[%clk 0:03:02]} 17. Rb1 {[%clk 0:02:32]}  Ra3 {[%clk 0:02:43]} 18. Nb5 {[%clk 0:02:26]}  Qxd2 {[%clk 0:02:35]} 19. Rxd2 {[%clk 0:02:27]}  Ra5 {[%clk 0:02:29]} 20. Kf2 {[%clk 0:02:19]}  Bd7 {[%clk 0:02:09]} 21. Nc3 {[%clk 0:02:14]}  Bc6 {[%clk 0:02:10]} 22. g4 {[%clk 0:01:55]}  Ra3 {[%clk 0:02:07]} 23. Rbb2 {[%clk 0:01:26]}  Nd7 {[%clk 0:01:59]} 24. Bxg7 {[%clk 0:01:25]}  Kxg7 {[%clk 0:02:00]} 25. Nb1 {[%clk 0:01:25]}  Ra1 {[%clk 0:01:57]} 26. Nc3 {[%clk 0:01:22]}  Ra3 {[%clk 0:01:58]} 27. Nb1 {[%clk 0:01:18]}  Ra1 {[%clk 0:01:58]} 28. Bd3 {[%clk 0:01:17]}  g5 {[%clk 0:01:54]} 29. Bc2 {[%clk 0:01:11]}  Ne5 {[%clk 0:01:53]} 30. Rd1 {[%clk 0:01:02]}  Rh8 {[%clk 0:01:52]} 31. Nc3 {[%clk 0:01:00]}  Ra3 {[%clk 0:01:52]} 32. Nb1 {[%clk 0:00:57]}  Ra1 {[%clk 0:01:51]} 33. Nc3 {[%clk 0:00:53]}  Rxd1 {[%clk 0:01:52]} 34. Nxd1 {[%clk 0:00:51]}  h5 {[%clk 0:01:53]} 35. gxh5 {[%clk 0:00:42]}  Rxh5 {[%clk 0:01:53]} 36. Kg2 {[%clk 0:00:42]}  f5 {[%clk 0:01:44]} 37. Ne3 {[%clk 0:00:39]}  f4 {[%clk 0:01:32]} 38. Nf5+ {[%clk 0:00:36]}  Kf6 {[%clk 0:01:32]} 39. h3 {[%clk 0:00:34]}  Bd7 {[%clk 0:01:31]} 40. Ra2 {[%clk 0:00:33]}  Rh8 {[%clk 0:00:57]} 41. Ra7 {[%clk 0:00:32]}  Bxf5 {[%clk 0:00:51]} 42. exf5 {[%clk 0:00:32]}  Rb8 {[%clk 0:00:51]} 43. Ra5 {[%clk 0:00:23]}  b6 {[%clk 0:00:51]} 44. Ra6 {[%clk 0:00:19]}  Nd7 {[%clk 0:00:50]} 45. b4 {[%clk 0:00:18]}  Ne5 {[%clk 0:00:49]} 46. c5 {[%clk 0:00:11]}  bxc5 {[%clk 0:00:49]} 47. bxc5 {[%clk 0:00:10]}  Rc8 {[%clk 0:00:50]} 48. Be4 {[%clk 0:00:08]}  Rxc5 {[%clk 0:00:49]} 49. Ra8 {[%clk 0:00:09]}  Nc4 {[%clk 0:00:49]} 50. Rf8+ {[%clk 0:00:08]}  Ke5 {[%clk 0:00:50]} 51. Rf7 {[%clk 0:00:06]}  Ne3+ {[%clk 0:00:49]} 52. Kf2 {[%clk 0:00:06]}  d5 {[%clk 0:00:43]} 53. Rxe7+ {[%clk 0:00:06]}  Kd4 {[%clk 0:00:43]} 54. f6 {[%clk 0:00:07]}  dxe4 {[%clk 0:00:41]} 55. Rxe4+ {[%clk 0:00:08]}  Kd3 {[%clk 0:00:41]} 56. f7 {[%clk 0:00:07]}  Rc2+ {[%clk 0:00:41]} 57. Kg1 {[%clk 0:00:07]}  Rc1+ {[%clk 0:00:30]} 58. Kh2 {[%clk 0:00:08]}  Rc2+ {[%clk 0:00:13]} 59. Kg1 {[%clk 0:00:08]}  Rc8 {[%clk 0:00:13]} 60. Re8 {[%clk 0:00:08]}  Rc1+ {[%clk 0:00:13]} 61. Kh2 {[%clk 0:00:08]}  Rc2+ {[%clk 0:00:14]} 62. Kg1 {[%clk 0:00:08]}  Rc1+ {[%clk 0:00:10]} 63. Kh2 {[%clk 0:00:08]}  Rc2+ {[%clk 0:00:10]} 64. Kg1 {[%clk 0:00:09]}  Rc1+ {[%clk 0:00:11]} 1/2-1/2


[Site "https://www.chess.com"]

[Event "Titled Tuesday Blitz October 11 Early 2022"]
[White "Duda, Jan-Krzysztof"]
[Black "Yeletsky, Ivan"]
[WhiteFideId "1170546"]
[BlackFideId "24180327"]
[WhiteElo "2779"]
[BlackElo "2391"]
[Result "1-0"]
[Round "08"]
[TimeControl "180+1"]
[Date "2022.10.11"]
[WhiteClock "0:00:17"]
[BlackClock "0:00:01"]

1. d4 {[%clk 0:03:00]}  Nf6 {[%clk 0:02:59]} 2. c4 {[%clk 0:03:01]}  e6 {[%clk 0:02:59]} 3. Nf3 {[%clk 0:03:01]}  d5 {[%clk 0:02:59]} 4. g3 {[%clk 0:03:02]}  Bb4+ {[%clk 0:02:58]} 5. Bd2 {[%clk 0:03:02]}  Be7 {[%clk 0:02:58]} 6. Bg2 {[%clk 0:03:02]}  O-O {[%clk 0:02:59]} 7. O-O {[%clk 0:03:02]}  c6 {[%clk 0:03:00]} 8. Qc2 {[%clk 0:03:02]}  Nbd7 {[%clk 0:03:01]} 9. Rd1 {[%clk 0:03:02]}  Ne4 {[%clk 0:03:00]} 10. Be1 {[%clk 0:02:48]}  f5 {[%clk 0:02:56]} 11. a3 {[%clk 0:02:45]}  Rf7 {[%clk 0:02:44]} 12. Nfd2 {[%clk 0:02:32]}  Bf6 {[%clk 0:02:35]} 13. Nxe4 {[%clk 0:02:14]}  fxe4 {[%clk 0:02:36]} 14. Nc3 {[%clk 0:02:14]}  Bg5 {[%clk 0:02:25]} 15. f3 {[%clk 0:02:08]}  Be3+ {[%clk 0:02:21]} 16. Bf2 {[%clk 0:01:56]}  Bxf2+ {[%clk 0:02:20]} 17. Kxf2 {[%clk 0:01:57]}  Qg5 {[%clk 0:02:20]} 18. Kg1 {[%clk 0:01:56]}  Nf6 {[%clk 0:02:12]} 19. f4 {[%clk 0:01:36]}  Qh5 {[%clk 0:02:11]} 20. h3 {[%clk 0:01:30]}  Qg6 {[%clk 0:02:01]} 21. g4 {[%clk 0:01:29]}  Nxg4 {[%clk 0:01:57]} 22. hxg4 {[%clk 0:01:29]}  Rxf4 {[%clk 0:01:57]} 23. e3 {[%clk 0:01:21]}  Rxg4 {[%clk 0:01:58]} 24. Rf1 {[%clk 0:01:20]}  Bd7 {[%clk 0:01:52]} 25. Qf2 {[%clk 0:01:15]}  h6 {[%clk 0:01:17]} 26. Ne2 {[%clk 0:01:14]}  Kh7 {[%clk 0:01:15]} 27. Nf4 {[%clk 0:01:11]}  Qg5 {[%clk 0:01:14]} 28. Nh3 {[%clk 0:01:10]}  Qg6 {[%clk 0:01:11]} 29. Kh2 {[%clk 0:01:03]}  Rf8 {[%clk 0:01:11]} 30. Qe2 {[%clk 0:01:00]}  Rf5 {[%clk 0:00:57]} 31. Rxf5 {[%clk 0:00:56]}  exf5 {[%clk 0:00:58]} 32. cxd5 {[%clk 0:00:54]}  cxd5 {[%clk 0:00:58]} 33. Rc1 {[%clk 0:00:41]}  Qd6+ {[%clk 0:00:49]} 34. Kh1 {[%clk 0:00:41]}  g5 {[%clk 0:00:38]} 35. Qf2 {[%clk 0:00:35]}  Rh4 {[%clk 0:00:37]} 36. Kg1 {[%clk 0:00:35]}  f4 {[%clk 0:00:35]} 37. Nxf4 {[%clk 0:00:35]}  Bg4 {[%clk 0:00:22]} 38. Nxd5 {[%clk 0:00:29]}  Qh2+ {[%clk 0:00:06]} 39. Kf1 {[%clk 0:00:29]}  Bf3 {[%clk 0:00:03]} 40. Bxf3 {[%clk 0:00:24]}  exf3 {[%clk 0:00:03]} 41. Rc7+ {[%clk 0:00:19]}  Kg6 {[%clk 0:00:04]} 42. Qxf3 {[%clk 0:00:18]}  Qxb2 {[%clk 0:00:01]} 43. Qf7# {[%clk 0:00:17]} 1-0


[Site "https://www.chess.com"]

[Event "Titled Tuesday Blitz October 11 Early 2022"]
[White "Gabdrakhmanov, Azat"]
[Black "Papasimakopoulos, Alexandros"]
[WhiteFideId "34189197"]
[BlackFideId "4244125"]
[WhiteElo "2233"]
[BlackElo "2357"]
[Result "0-1"]
[Round "08"]
[TimeControl "180+1"]
[Date "2022.10.11"]
[WhiteClock "0:00:15"]
[BlackClock "0:01:24"]

1. e4 {[%clk 0:03:00]}  e6 {[%clk 0:02:57]} 2. d3 {[%clk 0:02:57]}  d5 {[%clk 0:02:58]} 3. Nd2 {[%clk 0:02:58]}  c5 {[%clk 0:02:58]} 4. Ngf3 {[%clk 0:02:57]}  Nc6 {[%clk 0:02:59]} 5. g3 {[%clk 0:02:57]}  g6 {[%clk 0:02:59]} 6. Bg2 {[%clk 0:02:58]}  Bg7 {[%clk 0:03:00]} 7. O-O {[%clk 0:02:58]}  Nge7 {[%clk 0:03:01]} 8. Re1 {[%clk 0:02:59]}  b6 {[%clk 0:03:01]} 9. Qe2 {[%clk 0:02:59]}  a5 {[%clk 0:03:02]} 10. Nf1 {[%clk 0:02:59]}  Ba6 {[%clk 0:03:02]} 11. e5 {[%clk 0:02:57]}  b5 {[%clk 0:03:01]} 12. h4 {[%clk 0:02:55]}  h6 {[%clk 0:03:02]} 13. N1h2 {[%clk 0:02:52]}  b4 {[%clk 0:03:02]} 14. Ng4 {[%clk 0:02:50]}  Nf5 {[%clk 0:03:03]} 15. c3 {[%clk 0:02:43]}  a4 {[%clk 0:03:02]} 16. a3 {[%clk 0:02:41]}  bxc3 {[%clk 0:03:02]} 17. bxc3 {[%clk 0:02:41]}  O-O {[%clk 0:03:01]} 18. Bf4 {[%clk 0:02:38]}  Rb8 {[%clk 0:02:57]} 19. Nf6+ {[%clk 0:02:36]}  Bxf6 {[%clk 0:02:48]} 20. exf6 {[%clk 0:02:37]}  Qxf6 {[%clk 0:02:49]} 21. Ne5 {[%clk 0:02:11]}  Nfe7 {[%clk 0:02:21]} 22. Nd7 {[%clk 0:01:44]}  Qxc3 {[%clk 0:02:17]} 23. Nxb8 {[%clk 0:01:44]}  Nxb8 {[%clk 0:02:16]} 24. Bxh6 {[%clk 0:01:40]}  Rc8 {[%clk 0:02:16]} 25. Rac1 {[%clk 0:01:39]}  Qxd3 {[%clk 0:02:06]} 26. Qe5 {[%clk 0:01:16]}  Nf5 {[%clk 0:02:05]} 27. Bf4 {[%clk 0:01:07]}  Nd7 {[%clk 0:02:01]} 28. Qa1 {[%clk 0:00:52]}  Qd4 {[%clk 0:01:51]} 29. Qxd4 {[%clk 0:00:47]}  Nxd4 {[%clk 0:01:51]} 30. Rb1 {[%clk 0:00:36]}  Bd3 {[%clk 0:01:49]} 31. Rb7 {[%clk 0:00:33]}  Nf6 {[%clk 0:01:43]} 32. Be5 {[%clk 0:00:30]}  Ng4 {[%clk 0:01:42]} 33. Bxd4 {[%clk 0:00:28]}  cxd4 {[%clk 0:01:43]} 34. Rd1 {[%clk 0:00:27]}  Be2 {[%clk 0:01:41]} 35. Rxd4 {[%clk 0:00:24]}  Rc1+ {[%clk 0:01:42]} 36. Bf1 {[%clk 0:00:23]}  Rxf1+ {[%clk 0:01:38]} 37. Kg2 {[%clk 0:00:22]}  Rxf2+ {[%clk 0:01:31]} 38. Kg1 {[%clk 0:00:23]}  Rf1+ {[%clk 0:01:30]} 39. Kg2 {[%clk 0:00:23]}  Ne3+ {[%clk 0:01:30]} 40. Kh2 {[%clk 0:00:21]}  Bf3 {[%clk 0:01:30]} 41. g4 {[%clk 0:00:20]}  Be4 {[%clk 0:01:27]} 42. Rxa4 {[%clk 0:00:19]}  Rf2+ {[%clk 0:01:27]} 43. Kg3 {[%clk 0:00:19]}  Rf3+ {[%clk 0:01:28]} 44. Kh2 {[%clk 0:00:19]}  Nxg4+ {[%clk 0:01:28]} 45. Kg1 {[%clk 0:00:19]}  Re3 {[%clk 0:01:28]} 46. Kf1 {[%clk 0:00:19]}  Bf3 {[%clk 0:01:25]} 47. Ra8+ {[%clk 0:00:14]}  Kg7 {[%clk 0:01:25]} 48. Raa7 {[%clk 0:00:15]}  Ne5 {[%clk 0:01:23]} 49. Kf2 {[%clk 0:00:15]}  Rc3 {[%clk 0:01:22]} 50. a4 {[%clk 0:00:15]}  d4 {[%clk 0:01:23]} 51. a5 {[%clk 0:00:15]}  Bxb7 {[%clk 0:01:22]} 52. Rxb7 {[%clk 0:00:15]}  Rf3+ {[%clk 0:01:22]} 53. Ke2 {[%clk 0:00:15]}  Ra3 {[%clk 0:01:23]} 54. Rb5 {[%clk 0:00:15]}  Ra2+ {[%clk 0:01:23]} 55. Kd1 {[%clk 0:00:15]}  Nc4 {[%clk 0:01:24]} 0-1


[Site "https://www.chess.com"]

[Event "Titled Tuesday Blitz October 11 Early 2022"]
[White "Goryachkina, Aleksandra"]
[Black "Urazayev, Arystanbek"]
[WhiteFideId "4147103"]
[BlackFideId "13709810"]
[WhiteElo "2484"]
[BlackElo "2441"]
[Result "0-1"]
[Round "08"]
[TimeControl "180+1"]
[Date "2022.10.11"]
[WhiteClock "0:00:02"]
[BlackClock "0:01:33"]

1. e4 {[%clk 0:02:59]}  e5 {[%clk 0:03:00]} 2. Nf3 {[%clk 0:02:59]}  Nc6 {[%clk 0:03:01]} 3. d4 {[%clk 0:02:58]}  exd4 {[%clk 0:03:01]} 4. Bc4 {[%clk 0:02:58]}  Bc5 {[%clk 0:03:00]} 5. Ng5 {[%clk 0:02:52]}  Nh6 {[%clk 0:03:00]} 6. Nxf7 {[%clk 0:02:51]}  Nxf7 {[%clk 0:03:01]} 7. Bxf7+ {[%clk 0:02:52]}  Kxf7 {[%clk 0:03:02]} 8. Qh5+ {[%clk 0:02:52]}  g6 {[%clk 0:03:03]} 9. Qxc5 {[%clk 0:02:52]}  d5 {[%clk 0:03:03]} 10. O-O {[%clk 0:02:52]}  dxe4 {[%clk 0:03:04]} 11. c3 {[%clk 0:02:52]}  Qd6 {[%clk 0:03:04]} 12. Qg5 {[%clk 0:02:37]}  h6 {[%clk 0:02:55]} 13. Qh4 {[%clk 0:02:32]}  Bf5 {[%clk 0:02:54]} 14. cxd4 {[%clk 0:02:27]}  Nxd4 {[%clk 0:02:54]} 15. Nc3 {[%clk 0:02:27]}  g5 {[%clk 0:02:54]} 16. Qh5+ {[%clk 0:02:17]}  Bg6 {[%clk 0:02:50]} 17. Qd1 {[%clk 0:02:10]}  Rhe8 {[%clk 0:02:45]} 18. Be3 {[%clk 0:02:08]}  c5 {[%clk 0:02:38]} 19. b4 {[%clk 0:02:07]}  Rad8 {[%clk 0:02:37]} 20. bxc5 {[%clk 0:01:58]}  Qxc5 {[%clk 0:02:38]} 21. Rc1 {[%clk 0:01:53]}  Qc4 {[%clk 0:02:28]} 22. Qe1 {[%clk 0:01:18]}  Ne6 {[%clk 0:02:18]} 23. f3 {[%clk 0:00:53]}  exf3 {[%clk 0:02:18]} 24. Rxf3+ {[%clk 0:00:52]}  Kg7 {[%clk 0:02:19]} 25. Qf2 {[%clk 0:00:32]}  Nd4 {[%clk 0:02:10]} 26. Rf6 {[%clk 0:00:26]}  Nf5 {[%clk 0:01:52]} 27. Rxg6+ {[%clk 0:00:04]}  Kxg6 {[%clk 0:01:52]} 28. Rf1 {[%clk 0:00:04]}  Rf8 {[%clk 0:01:46]} 29. Bc5 {[%clk 0:00:04]}  Ne3 {[%clk 0:01:34]} 30. Bxf8 {[%clk 0:00:01]}  Qxf1+ {[%clk 0:01:34]} 31. Qxf1 {[%clk 0:00:01]}  Nxf1 {[%clk 0:01:35]} 32. Be7 {[%clk 0:00:02]}  Rd7 {[%clk 0:01:35]} 33. Bc5 {[%clk 0:00:02]}  b6 {[%clk 0:01:33]} 0-1


[Site "https://www.chess.com"]